bitfinex-derivatives/quotes_SOLF0:USTF0_20241216
["timestamp","ask_amount","ask_price","bid_price","bid_amount"]
[1734315226816,2.2303,224.26,224.2,2.57988]
[1734315227120,5.98914361,224.3,224.22,5.98914361]
[1734315227908,5.98914361,224.3,224.2,2.57988]
[1734315228117,5.98914361,224.3,224.21,5.98914361]
[1734315228713,5.98914361,224.3,224.2,2.57988]
[1734315228911,5.98914361,224.3,224.21,5.98914361]
[1734315230416,2.2305,224.25,224.21,5.98914361]
[1734315231619,2.2301,224.28,224.21,8.21984361]
[1734315231917,5.98914361,224.3,224.21,5.98914361]
[1734315233520,2.2302,224.27,224.21,5.98914361]
[1734315234217,5.98914361,224.3,224.21,5.98914361]
[1734315234926,2.2305,224.24,224.21,5.98914361]
[1734315242826,2.2305,224.24,224.2,2.2308]
[1734315243026,2.2305,224.24,224.19,4.6709]
[1734315243225,2.2305,224.24,224.21,5.98914361]
[1734315244034,2.2303,224.26,224.21,8.21984361]
[1734315244734,2.2304,224.25,224.21,8.21984361]
[1734315245629,2.2305,224.24,224.18,2.231]
[1734315245827,2.44,224.26,224.19,5.98914361]
[1734315246029,2.44,224.26,224.18,2.231]
[1734315246336,2.2307,224.23,224.19,5.98914361]
[1734315247230,2.44,224.26,224.15,2.44]
[1734315247438,2.2308,224.21,224.17,8.22034361]
[1734315249843,8.42914361,224.26,224.12,57.46355789]
[1734315250045,2.231,224.19,224.16,5.98914361]
[1734315252842,5.98914361,224.24,224.12,57.46355789]
[1734315253047,2.2312,224.17,224.15,5.98914361]
[1734315253651,2.2312,224.17,224.13,2.2315]
[1734315253854,2.2312,224.17,224.14,5.98914361]
[1734315254244,2.44,224.16,224.12,0.47189]
[1734315254452,2.44,224.15,224.12,0.47189]
[1734315255052,5.98914361,224.16,224.12,0.47189]
[1734315255256,2.44,224.15,224.12,0.47189]
[1734315255449,4.6714,224.15,224.12,0.47189]
[1734315255951,2.2314,224.15,224.12,0.47189]
[1734315256148,4.6714,224.15,224.12,0.47189]
[1734315256549,2.2314,224.15,224.12,0.47189]
[1734315256752,4.6714,224.15,224.12,0.47189]
[1734315260559,2.2314,224.15,224.12,0.47189]
[1734315260759,4.6714,224.15,224.12,0.47189]
[1734315261158,2.2315,224.14,224.12,0.47189]
[1734315261758,2.2315,224.13,224.12,0.47189]
[1734315263650,2.44,224.15,224.09,5.98914361]
[1734315263851,2.44,224.15,224.09,8.22104361]
[1734315264555,2.2316,224.13,224.07,2.2321]
[1734315264858,2.44,224.15,224.09,5.98914361]
[1734315265558,2.44,224.16,224.09,5.98914361]
[1734315265759,2.2315,224.14,224.09,8.22104361]
[1734315265961,2.44,224.16,224.03,2.44]
[1734315266154,2.44,224.16,224.09,5.98914361]
[1734315269364,2.2316,224.13,224.11,5.98914361]
[1734315270166,2.2314,224.15,224.11,5.98914361]
[1734315270666,2.2312,224.17,224.13,5.98914361]
[1734315271260,2.2313,224.16,224.13,5.98914361]
[1734315271862,2.44,224.19,224.13,5.98914361]
[1734315272062,5.98914361,224.22,224.07,2.44]
[1734315272063,2.44,224.2,224.15,5.98914361]
[1734315272760,5.98914361,224.22,224.15,5.98914361]
[1734315272966,2.44,224.21,224.15,5.98914361]
[1734315273566,2.231,224.19,224.15,8.22044361]
[1734315273862,2.44,224.21,224.15,5.98914361]
[1734315274060,2.2311,224.18,224.15,5.98914361]
[1734315274266,2.2311,224.18,224.13,5.98914361]
[1734315274466,2.44,224.21,224.13,5.98914361]
[1734315275466,2.2312,224.17,224.13,8.22064361]
[1734315276970,2.44,224.21,224.13,5.98914361]
[1734315277967,5.98914361,224.2,224.12,5.98914361]
[1734315278875,2.2315,224.13,224.12,5.98914361]
[1734315280573,5.98914361,224.2,224.12,5.98914361]
[1734315280775,2.2314,224.15,224.12,5.98914361]
[1734315282278,2.2314,224.15,224.1,2.2318]
[1734315282478,2.2314,224.15,224.12,5.98914361]
[1734315284167,2.2314,224.15,224.11,2.2317]
[1734315284378,2.2314,224.15,224.13,5.98914361]
[1734315287582,2.2314,224.15,224.1,2.2318]
[1734315288077,2.2314,224.15,224.12,5.98914361]
[1734315290974,2.44,224.19,224.12,5.98914361]
[1734315291574,2.44,224.22,224.14,8.22054361]
[1734315291775,8.42914361,224.22,224.14,8.22054361]
[1734315292574,2.2311,224.18,224.14,8.22054361]
[1734315292979,2.2312,224.17,224.14,5.98914361]
[1734315294081,8.42914361,224.22,224.14,5.98914361]
[1734315294873,2.2313,224.16,224.12,2.2316]
[1734315295282,2.2313,224.16,224.13,5.98914361]
[1734315297884,5.98914361,224.2,224.09,5.47991628]
[1734315298083,2.2314,224.15,224.12,5.98914361]
[1734315298288,2.2314,224.15,224.1,2.2318]
[1734315298487,5.98914361,224.2,224.12,5.98914361]
[1734315299479,2.2315,224.14,224.12,5.98914361]
[1734315300680,5.98914361,224.13,223.86,16.12282435]
[1734315300885,5.98914361,224.02,223.91,5.98914361]
[1734315301084,5.98914361,224.02,223.93,5.2921286]
[1734315301385,5.98914361,224.0,223.93,5.2921286]
[1734315301782,2.2332,223.97,223.93,5.2921286]
[1734315301980,5.98914361,224.01,223.93,5.2921286]
[1734315302381,2.44,224.06,223.95,5.98914361]
[1734315302582,5.98914361,224.06,223.97,5.98914361]
[1734315302785,5.98914361,224.06,223.98,2.44]
[1734315303286,2.44,224.11,224.01,5.98914361]
[1734315303489,5.98914361,224.11,224.03,5.98914361]
[1734315304187,5.98914361,224.11,223.99,1.4198]
[1734315304188,2.232,224.09,224.0,2.2328]
[1734315304393,8.22114361,224.09,224.0,8.22194361]
[1734315305588,8.22114361,224.09,224.01,2.2327]
[1734315305990,2.2318,224.11,224.03,2.2325]
[1734315306182,5.98914361,224.1,224.03,4.6725]
[1734315306387,5.98914361,224.1,224.03,2.44]
[1734315307389,2.232,224.09,224.01,2.2327]
[1734315307688,8.22114361,224.09,224.02,2.44]
[1734315308087,8.22114361,224.09,224.03,2.44]
[1734315308287,2.2317,224.12,224.06,2.2322]
[1734315309389,5.98914361,224.13,224.05,5.98914361]
[1734315309585,8.22074361,224.13,224.07,2.2321]
[1734315309791,8.22074361,224.13,224.08,2.44]
[1734315309988,5.98914361,224.13,224.08,2.44]
[1734315310988,2.44,224.19,224.08,2.44]
[1734315311193,5.98914361,224.16,224.08,2.44]
[1734315311885,2.2313,224.16,224.08,2.44]
[1734315312089,8.22044361,224.16,224.08,2.44]
[1734315312893,2.8983,224.21,224.08,2.44]
[1734315312894,2.2317,224.12,224.08,2.44]
[1734315313191,2.2317,224.12,224.08,2.42]
[1734315313396,5.98914361,224.12,224.08,2.42]
[1734315314398,5.98914361,224.12,224.08,4.6521]
[1734315314600,8.22064361,224.14,224.08,4.6521]
[1734315315891,2.2316,224.13,224.08,4.6521]
[1734315316592,8.22064361,224.14,224.08,4.6521]
[1734315317099,2.8983,224.21,224.08,4.6521]
[1734315317299,5.98914361,224.13,224.08,4.6521]
[1734315318990,8.22114361,224.09,224.05,2.42]
[1734315319897,2.2321,224.08,224.05,2.42]
[1734315321298,2.2321,224.08,224.03,2.2325]
[1734315321598,2.2323,224.06,224.02,2.42]
[1734315321992,5.98914361,224.05,223.99,3.8398]
[1734315322595,2.2326,224.04,223.99,6.0727]
[1734315322998,5.98914361,224.07,223.99,3.8398]
[1734315324400,2.2323,224.06,224.0,2.2328]
[1734315324798,2.2323,224.06,223.99,3.8398]
[1734315325799,2.2323,224.06,223.99,9.82894361]
[1734315326392,2.2323,224.06,224.01,2.2328]
[1734315329998,5.98914361,224.07,224.0,2.44]
[1734315330204,5.98914361,224.11,224.03,5.98914361]
[1734315331098,8.22114361,224.09,224.05,2.2324]
[1734315331294,8.22114361,224.09,224.0,3.8628]
[1734315331498,2.2321,224.08,224.03,2.2325]
[1734315331702,5.98914361,224.07,224.0,2.44]
[1734315332295,2.2323,224.06,224.0,2.44]
[1734315332902,5.98914361,224.07,223.9,2.9331]
[1734315333101,2.2324,224.05,224.0,2.2328]
[1734315333899,5.98914361,224.07,224.0,2.2328]
[1734315334100,2.2324,224.05,224.0,2.2328]
[1734315335305,2.2324,224.05,223.99,2.44]
[1734315335511,5.98914361,224.07,224.01,2.2327]
[1734315335803,2.2323,224.06,224.01,2.2327]
[1734315339411,2.2323,224.06,223.99,2.44]
[1734315339712,3.0224,224.12,224.0,5.98914361]
[1734315339909,5.98914361,224.08,224.0,5.98914361]
[1734315340207,8.22124361,224.08,224.03,2.2325]
[1734315341510,5.98914361,224.08,224.01,2.2327]
[1734315341707,5.98914361,224.08,223.99,8.42914361]
[1734315342410,5.98914361,224.08,224.03,2.2325]
[1734315342710,8.22124361,224.08,224.03,2.2325]
[1734315342911,5.98914361,224.08,224.02,2.2326]
[1734315343209,3.0224,224.12,223.99,2.44]
[1734315343210,5.98914361,224.06,223.99,2.44]
[1734315343512,2.2324,224.05,224.0,2.2328]
[1734315344103,2.2324,224.05,224.01,2.2327]
[1734315345115,2.2323,224.07,224.02,2.2327]
[1734315345314,5.98914361,224.05,224.0,2.42]
[1734315345810,2.2326,224.03,224.0,2.42]
[1734315346512,5.98914361,224.02,223.9,2.9331]
[1734315346715,5.98914361,223.99,223.91,2.42]
[1734315347213,8.22214361,223.99,223.93,2.2335]
[1734315350411,8.22214361,223.99,223.91,2.42]
[1734315350721,2.2331,223.98,223.92,4.6536]
[1734315350914,2.2331,223.98,223.92,2.42]
[1734315351520,5.98914361,223.99,223.71,50.8914]
[1734315351521,5.98914361,223.93,223.71,50.8914]
[1734315351816,5.98914361,223.96,223.89,5.98914361]
[1734315352019,5.98914361,223.96,223.9,2.42]
[1734315353420,2.2334,223.95,223.9,4.6538]
[1734315354213,5.98914361,223.96,223.91,2.2337]
[1734315355219,8.22244361,223.96,223.91,2.2337]
[1734315359416,2.2334,223.95,223.9,10.64294361]
[1734315362416,2.2334,223.95,223.91,2.2337]
[1734315362623,1.4235,224.02,223.9,8.40914361]
[1734315362814,5.98914361,223.99,223.92,5.98914361]
[1734315363220,2.2331,223.98,223.92,8.22274361]
[1734315363613,2.2331,223.98,223.92,5.98914361]
[1734315363819,2.2331,223.98,223.93,2.42]
[1734315364423,2.2331,223.98,223.93,4.6535]
[1734315364923,5.98914361,223.97,223.93,2.42]
[1734315365422,5.98914361,223.97,223.91,4.6537]
[1734315365625,5.98914361,223.95,223.8,3.29816]
[1734315365824,5.98914361,223.95,223.87,5.98914361]
[1734315366027,5.98914361,223.93,223.8,3.29816]
[1734315366229,2.2337,223.92,223.87,2.2341]
[1734315366517,2.2337,223.92,223.87,4.6541]
[1734315366918,2.2337,223.92,223.88,2.234]
[1734315368123,5.98914361,223.93,223.88,2.234]
[1734315368325,5.98914361,223.93,223.87,2.42]
[1734315368326,2.2336,223.93,223.87,2.42]
[1734315368524,5.98914361,223.98,223.9,5.98914361]
[1734315369025,2.2334,223.95,223.91,2.2337]
[1734315372223,5.98914361,223.98,223.9,5.98914361]
[1734315372928,2.2332,223.97,223.93,2.2336]
[1734315373122,2.2332,223.97,223.92,2.42]
[1734315373522,2.2332,223.97,223.93,2.2335]
[1734315374932,2.2332,223.97,223.92,2.42]
[1734315374933,8.22244361,223.96,223.92,4.6536]
[1734315375229,5.98914361,223.96,223.92,2.42]
[1734315376132,2.2335,223.94,223.92,2.42]
[1734315376930,2.2336,223.93,223.92,2.42]
[1734315377135,2.2336,223.93,223.89,4.6539]
[1734315377433,2.2336,223.93,223.9,5.98914361]
[1734315377628,5.98914361,223.96,223.9,5.98914361]
[1734315377629,3.0474,224.02,223.9,5.98914361]
[1734315377836,5.98914361,223.98,223.9,5.98914361]
[1734315378132,2.2334,223.95,223.9,8.22294361]
[1734315378930,2.2336,223.93,223.9,5.98914361]
[1734315379537,2.2334,223.95,223.9,8.22294361]
[1734315380939,2.2335,223.94,223.89,4.6539]
[1734315381135,2.2335,223.94,223.89,10.64304361]
[1734315381936,2.2336,223.93,223.89,10.64304361]
[1734315382537,2.2336,223.93,223.89,4.6539]
[1734315383140,2.2336,223.93,223.9,5.98914361]
[1734315383339,2.233,223.99,223.91,2.2337]
[1734315383540,5.98914361,223.98,223.91,2.2337]
[1734315383839,3.0474,224.02,223.94,5.98914361]
[1734315384038,5.98914361,224.0,223.92,5.98914361]
[1734315384241,5.98914361,223.98,223.92,5.98914361]
[1734315384738,2.2332,223.97,223.92,8.22274361]
[1734315385737,2.2332,223.97,223.93,2.2335]
[1734315386745,8.22224361,223.98,223.93,2.2335]
[1734315387946,5.98914361,223.98,223.93,2.2335]
[1734315388247,5.98914361,223.96,223.9,2.42]
[1734315389447,2.2335,223.94,223.9,2.42]
[1734315390948,2.2335,223.94,223.89,4.6538]
[1734315391650,8.22264361,223.94,223.89,4.6538]
[1734315391846,5.98914361,223.92,223.83,1.5162]
[1734315392052,5.98914361,223.92,223.84,8.40914361]
[1734315392552,2.2338,223.91,223.86,2.2342]
[1734315392853,2.2338,223.91,223.84,8.40914361]
[1734315393246,2.2338,223.91,223.86,2.2342]
[1734315393452,2.2338,223.91,223.84,8.40914361]
[1734315393754,2.2338,223.91,223.86,5.98914361]
[1734315394150,2.2338,223.91,223.85,2.42]
[1734315394350,5.98914361,223.92,223.86,5.98914361]
[1734315394549,8.22284361,223.92,223.87,2.2341]
[1734315398253,5.98914361,223.9,223.83,2.42]
[1734315398454,5.98914361,223.9,223.83,8.40914361]
[1734315398653,2.42,223.99,223.85,5.98914361]
[1734315398848,8.22284361,223.92,223.85,5.98914361]
[1734315399062,8.22284361,223.92,223.85,2.42]
[1734315400357,5.98914361,223.92,223.85,2.42]
[1734315400558,2.2338,223.91,223.86,2.2342]
[1734315401957,2.2339,223.9,223.85,8.22344361]
[1734315402154,2.2339,223.9,223.85,5.98914361]
[1734315403558,2.2339,223.9,223.86,2.2342]
[1734315404258,2.2339,223.9,223.85,5.98914361]
[1734315405460,5.98914361,223.9,223.82,0.26009]
[1734315405654,2.2341,223.88,223.82,0.26009]
[1734315405854,2.2341,223.88,223.82,6.24923361]
[1734315406464,2.2341,223.88,223.83,2.2345]
[1734315407266,8.22324361,223.88,223.83,2.2345]
[1734315409767,5.98914361,223.88,223.82,0.26009]
[1734315410064,2.2342,223.87,223.82,2.49469]
[1734315410964,2.2343,223.86,223.82,2.49469]
[1734315411855,5.98914361,223.88,223.82,0.26009]
[1734315412264,5.98914361,223.84,223.82,0.26009]
[1734315412462,2.2345,223.83,223.82,0.26009]
[1734315412669,8.40914361,223.87,223.82,0.26009]
[1734315414470,2.2345,223.83,223.82,0.26009]
[1734315416461,8.22364361,223.83,223.82,0.26009]
[1734315418566,5.98914361,223.83,223.75,8.22444361]
[1734315418860,2.2349,223.8,223.75,8.22444361]
[1734315419373,5.98914361,223.83,223.75,5.98914361]
[1734315419962,2.235,223.78,223.74,2.2354]
[1734315420164,1.5338,223.84,223.74,8.22454361]
[1734315420364,5.98914361,223.82,223.74,8.22454361]
[1734315420970,5.98914361,223.82,223.74,5.98914361]
[1734315422665,2.2352,223.77,223.74,5.98914361]
[1734315423271,2.2352,223.77,223.73,0.42448]
[1734315423472,8.40914361,223.82,223.73,0.42448]
[1734315423673,2.2354,223.75,223.73,0.42448]
[1734315423869,5.98914361,223.78,223.73,0.42448]
[1734315424469,2.2354,223.75,223.73,0.42448]
[1734315425364,2.2353,223.75,223.73,0.42448]
[1734315425769,1.5338,223.84,223.73,0.42448]
[1734315425770,5.98914361,223.74,223.73,0.42448]
[1734315426168,8.22454361,223.74,223.73,0.42448]
[1734315426574,5.98914361,223.74,223.57,2.42]
[1734315426776,5.98914361,223.7,223.62,5.98914361]
[1734315427074,5.98914361,223.7,223.58,2.42]
[1734315427276,5.98914361,223.7,223.61,5.98914361]
[1734315427573,5.98914361,223.7,223.52,4.3932]
[1734315427773,5.98914361,223.68,223.53,2.42]
[1734315428074,2.2364,223.65,223.6,8.22594361]
[1734315428275,5.98914361,223.7,223.62,5.98914361]
[1734315428774,5.98914361,223.72,223.64,5.98914361]
[1734315428976,1.5323,223.73,223.59,2.42]
[1734315428977,7.52144361,223.73,223.59,2.42]
[1734315429172,7.52144361,223.73,223.65,5.98914361]
[1734315429373,2.42,223.72,223.65,5.98914361]
[1734315430267,2.42,223.72,223.6,2.9642]
[1734315430575,2.42,223.72,223.65,5.98914361]
[1734315430978,2.2359,223.69,223.65,5.98914361]
[1734315431272,2.42,223.72,223.65,5.98914361]
[1734315431472,2.42,223.72,223.6,2.9642]
[1734315431677,2.2358,223.7,223.65,8.22544361]
[1734315433478,2.42,223.72,223.63,5.98914361]
[1734315433479,5.98914361,223.71,223.63,5.98914361]
[1734315433778,2.2359,223.69,223.63,5.98914361]
[1734315434280,2.2359,223.69,223.64,2.2364]
[1734315434678,5.98914361,223.71,223.63,5.98914361]
[1734315434876,5.98914361,223.71,223.6,2.9642]
[1734315435078,5.98914361,223.71,223.62,5.98914361]
[1734315436584,2.2363,223.66,223.62,5.98914361]
[1734315438580,2.2361,223.67,223.62,8.22574361]
[1734315438985,2.2361,223.67,223.62,2.2366]
[1734315439182,5.98914361,223.63,223.57,2.237]
[1734315439485,5.98914361,223.58,223.43,2.42]
[1734315439881,5.98914361,223.58,223.52,2.2376]
[1734315440387,8.22614361,223.58,223.5,5.98914361]
[1734315440681,2.237,223.58,223.49,5.98914361]
[1734315440985,2.42,223.6,223.44,2.42]
[1734315441185,5.98914361,223.58,223.44,2.42]
[1734315441382,5.98914361,223.58,223.49,5.98914361]
[1734315441576,2.2371,223.57,223.5,2.2378]
[1734315441985,2.42,223.6,223.51,5.98914361]
[1734315442183,5.98914361,223.58,223.44,2.42]
[1734315442388,5.98914361,223.58,223.5,5.98914361]
[1734315442581,8.40914361,223.6,223.52,5.98914361]
[1734315443077,8.40914361,223.6,223.51,2.2377]
[1734315443078,2.237,223.59,223.51,2.2377]
[1734315443282,2.237,223.59,223.51,8.22684361]
[1734315443783,2.42,223.6,223.51,5.98914361]
[1734315444083,8.40914361,223.6,223.54,2.2374]
[1734315444281,5.98914361,223.6,223.54,2.2374]
[1734315444685,1.5492,223.61,223.56,2.2372]
[1734315444881,1.5492,223.61,223.53,5.98914361]
[1734315445086,76.95978328,223.62,223.57,5.98914361]
[1734315445389,8.40914361,223.67,223.61,2.2367]
[1734315445587,4.2792,223.76,223.59,5.98914361]
[1734315445784,5.98914361,223.71,223.62,5.98914361]
[1734315445981,5.98914361,223.69,223.62,5.98914361]
[1734315446186,5.98914361,223.69,223.62,2.2366]
[1734315446889,5.98914361,223.67,223.62,2.2366]
[1734315447083,5.98914361,223.67,223.57,2.42]
[1734315447084,5.98914361,223.67,223.63,2.2365]
[1734315447286,5.98914361,223.69,223.63,2.2365]
[1734315447989,4.6556,223.73,223.65,2.2363]
[1734315448184,5.98914361,223.7,223.65,2.2363]
[1734315448382,5.98914361,223.7,223.62,5.98914361]
[1734315448582,5.98914361,223.68,223.62,2.2366]
[1734315448993,5.98914361,223.68,223.6,5.98914361]
[1734315449486,5.98914361,223.68,223.57,2.42]
[1734315449692,5.98914361,223.68,223.6,5.98914361]
[1734315449989,2.42,223.73,223.59,2.2369]
[1734315449990,5.98914361,223.66,223.59,2.2369]
[1734315450285,5.98914361,223.66,223.57,5.98914361]
[1734315450491,2.42,223.67,223.59,5.98914361]
[1734315450687,2.42,223.67,223.51,4.3376]
[1734315450688,5.98914361,223.68,223.63,2.2365]
[1734315450892,5.98914361,223.7,223.61,5.98914361]
[1734315451189,5.98914361,223.68,223.6,2.42]
[1734315452186,2.2359,223.69,223.63,2.2365]
[1734315452891,8.22554361,223.64,223.54,5.98914361]
[1734315453093,5.98914361,223.64,223.52,3.101]
[1734315453296,5.98914361,223.64,223.54,5.98914361]
[1734315453696,5.98914361,223.64,223.58,2.237]
[1734315453892,5.98914361,223.64,223.52,3.101]
[1734315454198,5.98914361,223.62,223.54,5.98914361]
[1734315454493,5.98914361,223.62,223.57,2.2371]
[1734315454896,2.2367,223.61,223.55,2.2373]
[1734315455097,5.98914361,223.62,223.55,2.2373]
[1734315456487,2.2368,223.6,223.55,2.2373]
[1734315456692,5.98914361,223.62,223.56,2.2372]
[1734315458092,5.98914361,223.62,223.53,2.42]
[1734315458292,2.2368,223.6,223.55,2.2373]
[1734315459999,5.98914361,223.6,223.53,2.2374]
[1734315460597,5.98914361,223.57,223.53,2.2374]
[1734315460897,2.2372,223.56,223.52,2.2376]
[1734315461098,5.98914361,223.57,223.52,2.2376]
[1734315461794,5.98914361,223.59,223.52,2.2376]
[1734315462194,5.98914361,223.57,223.49,2.42]
[1734315462391,5.98914361,223.57,223.49,8.40914361]
[1734315462691,5.98914361,223.57,223.46,0.33641]
[1734315462895,2.2374,223.55,223.48,5.98914361]
[1734315463198,2.2374,223.55,223.5,5.98914361]
[1734315463398,2.2374,223.55,223.5,8.22684361]
[1734315463594,8.22634361,223.57,223.5,5.98914361]
[1734315463999,2.42,223.6,223.52,5.98914361]
[1734315464400,5.98914361,223.62,223.54,5.98914361]
[1734315464595,5.98914361,223.62,223.56,2.2372]
[1734315465102,8.22584361,223.62,223.56,2.2372]
[1734315465398,5.98914361,223.62,223.56,2.2372]
[1734315466299,2.2369,223.6,223.56,2.2372]
[1734315466507,8.22604361,223.6,223.54,2.2374]
[1734315467009,2.2369,223.59,223.54,2.2374]
[1734315467514,2.2373,223.56,223.51,2.42]
[1734315468006,2.2373,223.56,223.5,2.2377]
[1734315468202,2.2373,223.55,223.43,2.42]
[1734315468409,2.2373,223.55,223.47,5.98914361]
[1734315469106,5.98914361,223.54,223.39,4.4073]
[1734315469312,5.98914361,223.54,223.45,5.98914361]
[1734315470204,5.98914361,223.52,223.45,2.2383]
[1734315470612,5.98914361,223.54,223.46,6.32555361]
[1734315470917,2.2377,223.52,223.46,0.33641]
[1734315471110,2.2377,223.52,223.46,6.32555361]
[1734315471506,2.2375,223.54,223.48,5.98914361]
[1734315471910,2.42,223.55,223.48,5.98914361]
[1734315472211,5.98914361,223.54,223.47,2.2381]
[1734315472615,5.98914361,223.54,223.48,2.238]
[1734315473912,5.98914361,223.54,223.47,2.2381]
[1734315473913,2.2376,223.52,223.47,2.2381]
[1734315474114,2.2376,223.52,223.46,6.32555361]
[1734315475413,2.2376,223.52,223.46,8.56375361]
[1734315475606,8.22694361,223.51,223.46,2.57461]
[1734315475911,2.2378,223.51,223.46,2.57461]
[1734315476112,2.2378,223.51,223.46,0.33641]
[1734315476616,2.2379,223.49,223.46,0.33641]
[1734315477213,5.98914361,223.51,223.46,0.33641]
[1734315478216,2.238,223.48,223.46,0.33641]
[1734315478612,5.98914361,223.52,223.46,0.33641]
[1734315478919,2.2378,223.51,223.46,0.33641]
[1734315479119,5.98914361,223.52,223.46,0.33641]
[1734315479323,8.22684361,223.52,223.46,0.33641]
[1734315479517,8.22684361,223.52,223.46,2.57461]
[1734315479915,2.2378,223.51,223.46,2.57461]
[1734315480516,5.98914361,223.56,223.46,0.33641]
[1734315480715,5.98914361,223.56,223.47,5.98914361]
[1734315480922,5.98914361,223.54,223.47,5.98914361]
[1734315481315,2.2376,223.52,223.46,0.33641]
[1734315481716,5.98914361,223.54,223.47,5.98914361]
[1734315481916,13.39,223.7,223.46,2.75641]
[1734315482113,5.98914361,223.61,223.53,5.98914361]
[1734315482311,2.2364,223.64,223.58,2.237]
[1734315482924,5.98914361,223.65,223.47,4.3856]
[1734315482925,73.40406199,223.69,223.59,5.98914361]
[1734315483115,73.40406199,223.69,223.47,4.3856]
[1734315483116,2.2361,223.68,223.61,5.98914361]
[1734315483315,5.98914361,223.69,223.61,5.98914361]
[1734315483516,5.98914361,223.67,223.6,2.42]
[1734315483720,5.98914361,223.65,223.6,2.42]
[1734315483917,5.98914361,223.65,223.55,4.6573]
[1734315484223,2.2366,223.63,223.55,8.40914361]
[1734315484921,2.2366,223.63,223.57,5.98914361]
[1734315485219,8.22574361,223.63,223.55,8.40914361]
[1734315485424,8.22574361,223.63,223.56,2.2372]
[1734315485821,5.98914361,223.63,223.55,2.42]
[1734315486016,5.98914361,223.61,223.55,2.42]
[1734315486219,5.98914361,223.62,223.54,5.98914361]
[1734315486822,2.2368,223.6,223.52,2.2376]
[1734315487024,5.98914361,223.62,223.52,8.22674361]
[1734315487816,5.98914361,223.6,223.51,2.42]
[1734315488022,2.42,223.63,223.51,2.42]
[1734315488023,11.85882718,223.63,223.51,2.42]
[1734315488623,2.2371,223.57,223.51,4.6577]
[1734315489117,11.85882718,223.63,223.51,4.6577]
[1734315489322,2.2372,223.56,223.51,4.6577]
[1734315489520,11.85882718,223.63,223.48,1.5255]
[1734315489721,11.85882718,223.63,223.48,3.9455]
[1734315489929,11.85882718,223.63,223.48,2.42]
[1734315490117,11.85882718,223.63,223.48,2.238]
[1734315490729,2.237,223.59,223.47,10.85072718]
[1734315491020,2.237,223.59,223.49,2.2379]
[1734315491021,2.42,223.59,223.49,2.2379]
[1734315492221,1.4971,223.58,223.48,0.30907]
[1734315492427,4.3751,223.58,223.48,0.30907]
[1734315492620,9.43882718,223.57,223.48,0.30907]
[1734315493020,2.2377,223.51,223.48,0.30907]
[1734315493624,2.2376,223.53,223.48,0.30907]
[1734315494124,2.2372,223.57,223.48,0.30907]
[1734315494321,4.3751,223.58,223.48,0.30907]
[1734315495229,2.2373,223.55,223.5,2.2378]
[1734315495820,2.9402,223.58,223.48,2.72907]
[1734315496024,2.9402,223.58,223.48,4.96707]
[1734315496426,2.9402,223.58,223.48,2.72907]
[1734315496628,2.2377,223.51,223.48,0.30907]
[1734315496826,2.9402,223.58,223.48,0.30907]
[1734315497423,4.4125,223.58,223.48,0.30907]
[1734315498227,2.2377,223.51,223.48,0.30907]
[1734315498524,9.43882718,223.57,223.48,0.30907]
[1734315499332,2.2379,223.49,223.48,0.30907]
[1734315502331,2.2379,223.49,223.38,1.4946]
[1734315502332,2.2385,223.43,223.38,1.4946]
[1734315502534,2.2385,223.43,223.38,2.239]
[1734315503430,1.5284,223.48,223.35,9.43882718]
[1734315503631,2.2384,223.44,223.39,2.2389]
[1734315503838,1.5284,223.48,223.35,9.43882718]
[1734315504234,2.2385,223.44,223.35,9.43882718]
[1734315504534,1.5284,223.48,223.35,9.43882718]
[1734315504732,1.5284,223.48,223.39,2.2389]
[1734315504733,2.2384,223.45,223.39,2.2389]
[1734315504933,1.5284,223.48,223.39,2.2389]
[1734315505630,1.5284,223.48,223.35,10.92282718]
[1734315505830,2.2382,223.47,223.38,9.43882718]
[1734315506138,2.2382,223.47,223.39,2.42]
[1734315507230,2.42,223.53,223.4,2.42]